[Event "Cracovia Festival-A 2023"]
[Site "Krakow"]
[Date "2023.12.30"]
[Round "4.1"]
[White "Soffer, Ram"]
[Black "Keinanen, Toivo"]
[Result "1/2-1/2"]
[ECO "D31"]
[WhiteElo "2444"]
[BlackElo "2522"]
[Annotator "TA"]
[PlyCount "129"]
[EventDate "2023.12.24"]
[EventType "swiss"]
[EventCountry "POL"]
[SourceTitle "playchess.com"]
[Source "ChessBase"]
[SourceQuality "1"]
[TimeControl "40/5400+30:1800+30"]

{[%evp 21,129,0,0,0,0,0,0,-9,-7,-18,-13,-11,-18,-33,-47,-31,-44,-47,-65,-55,-35,-109,-104,-93,-102,-116,-102,-92,-85,-110,-107,-107,-89,-91,-74,-94,-100,-106,-106,-105,-87,-140,-137,-197,-190,-186,-194,-191,-189,-261,-257,-250,0,-130,-110,-108,-91,-106,-58,-58,-58,-74,-51,-53,-57,-54,-54,-53,-53,-77,-53,-54,-54,-64,-62,-64,-62,-83,-54,-69,0,-89,-60,-61,-54,-72,-34,-55,-26,-41,-34,-38,-22,-43,0,0,0,0,0,-7,0,0,0,0,0,0,0,0,0,0]} 1. d4 {[%emt 0:00:05]} d5 {[%emt 0:00:08]} 2. c4 {[%emt 0:00:07]} e6 {[%emt 0:00:04]} 3. Nc3 {[%emt 0:00:10]} Be7 {[%emt 0:00:43]} 4. cxd5 {[%emt 0:00:11]} exd5 {[%emt 0:00:03]} 5. Bf4 {[%emt 0:00:14]} Nf6 {[%emt 0:00:20]} 6. e3 {[%emt 0:01:27]} Bf5 {[%emt 0:00:23]} 7. Nf3 {[%emt 0:04:13]} O-O {[%emt 0:06:27]} 8. Bd3 {[%emt 0:04:36]} Bxd3 {[%emt 0:04:19]} 9. Qxd3 {[%emt 0:00:24]} c6 {[%emt 0:02:13]} 10. O-O {[%emt 0:00:26]} Nbd7 {[%emt 0:03:36]} 11. h3 {[%emt 0:04:21]} Re8 {[%emt 0:02:49]} 12. Qc2 {[%emt 0:04:31] D35: Queen's Gambit Declined: Exchange Variation.} Nb6 {[%emt 0:04:46]} 13. Ne5 {[%emt 0:04:42]} Bd6 {[%emt 0:03:11] [#]} (13... Nh5 {looks sharper.} 14. Qf5 Nf6 15. Rfe1 g6) 14. Qb3 $146 {[%emt 0:05:13]} ({Predecessor:} 14. a4 Nc4 15. Nd3 Bxf4 16. Nxf4 Rc8 17. Rfd1 Nd6 18. Nd3 Nh5 19. Qe2 Qg5 20. Ne5 {0-1 Jouhaneau,J (1919)-Dobias,R (2246) Metz op 24th 2006 (7)}) 14... Qc7 {[%emt 0:09:30]} 15. Rac1 {[%emt 0:10:37][%cal Oc3b5] [#]} Nc4 $1 {[%emt 0:08:40] Threatening ...Nd2.} 16. Nxc4 {[%emt 0:00:08]} (16. Rfd1 Rad8) 16... Bxf4 {[%emt 0:00:09]} 17. Nd2 {[%emt 0:00:21] [#]} Rxe3 {[%emt 0:18:39]} 18. fxe3 {[%emt 0:01:40]} Bxe3+ {[%emt 0:00:10]} 19. Kh1 {[%emt 0:00:05][%cal Oc3b5]} Bxd2 {[%emt 0:00:54]} 20. Rc2 {[%emt 0:00:24]} Bxc3 {[%emt 0:07:01]} 21. Rxc3 {[%emt 0:06:55]} (21. bxc3 $15 Ne4 22. Kg1) 21... Ne4 $17 {[%emt 0:00:53]} 22. Re3 {[%emt 0:00:12]} Rf8 {[%emt 0:05:45]} 23. Rfe1 {[%emt 0:11:19]} Re8 {[%emt 0:03:16][%cal Bf8e8,Be8e6,Be6g6][%mdl 32]} 24. Kg1 {[%emt 0:00:34]} Re6 {[%emt 0:00:22]} 25. a3 {[%emt 0:02:18]} h6 {[%emt 0:01:30]} 26. R3e2 {[%emt 0:02:05]} Rg6 {[%emt 0:03:08]} 27. Rf1 {[%emt 0:02:12]} Qd7 {[%emt 0:02:32]} 28. Rf3 {[%emt 0:05:09] Prevents Ng3} Re6 {[%emt 0:01:03]} (28... a5 {with more complications.} 29. Qe3 Qd6 30. Qb3 Qc7) 29. Qd1 {[%emt 0:04:29]} Qe7 {[%emt 0:00:41]} 30. Qe1 {[%emt 0:00:23]} Qg5 {[%emt 0:01:51]} 31. g4 {[%emt 0:04:48]} ({White should play} 31. b4) 31... Qe7 {[%emt 0:01:48] aiming for ...Ng5.} 32. Kg2 {[%emt 0:01:21] [#]} (32. Rf4 $17 {is a better defense.}) 32... h5 $1 $19 {[%emt 0:01:12][%mdl 512]} 33. gxh5 {[%emt 0:03:57]} Qg5+ {[%emt 0:00:18]} 34. Kh2 {[%emt 0:00:12]} Qxh5 {[%emt 0:00:30]} 35. Qf1 {[%emt 0:01:05] [#]} (35. Rfe3 $142) 35... Ng5 $1 {[%emt 0:01:39]} 36. Rfe3 {[%emt 0:00:20] [#]} Ne4 {[%emt 0:01:03]} (36... Re4 $1 $19 {White must now prevent ...f5.} 37. b4 g6) 37. Rf3 $1 $17 {[%emt 0:05:37]} Re7 {[%emt 0:05:36]} 38. Rg2 {[%emt 0:02:18]} Qh6 {[%emt 0:00:29] And now ...Nd2 would win.} 39. Rf5 {[%emt 0:01:28]} Qd6+ {[%emt 0:01:31]} (39... f6 $17 40. Rf4 Kf7) 40. Qf4 $15 {[%emt 0:00:00]} Qxf4+ {[%emt 0:00:00]} 41. Rxf4 {[%emt 0:00:26][%mdl 4096] Endgame KRR-KRN} f6 {[%emt 0:03:41]} 42. Re2 {[%emt 0:04:46]} Kf7 {[%emt 0:01:13]} 43. h4 {[%emt 0:00:15]} Re8 {[%emt 0:03:33]} 44. Kg1 {[%emt 0:02:49]} Rh8 {[%emt 0:02:37]} 45. Rg2 {[%emt 0:01:12]} Rh5 {[%emt 0:04:44]} 46. Rfg4 {[%emt 0:03:38]} Rh7 {[%emt 0:01:20]} 47. Rf4 {[%emt 0:00:54]} Nd6 {[%emt 0:00:46]} 48. Rgf2 {[%emt 0:03:39]} Rh8 {[%emt 0:01:16]} 49. Re2 {[%emt 0:01:25]} Rh5 {[%emt 0:01:44]} 50. Ref2 {[%emt 0:01:41]} Rh8 {[%emt 0:03:15]} 51. Re2 $1 {[%emt 0:00:15]} Nb5 {[%emt 0:00:39]} 52. Rh2 {[%emt 0:05:33]} Rh5 {[%emt 0:01:10]} 53. a4 {[%emt 0:08:12]} Nc7 {[%emt 0:00:46]} 54. Rff2 {[%emt 0:00:24]} Ne6 {[%emt 0:00:34]} 55. Rd2 {[%emt 0:00:05]} Ke7 {[%emt 0:02:09]} 56. b4 {[%emt 0:04:03]} Kd6 {[%emt 0:00:43]} 57. b5 {[%emt 0:00:33]} Rh8 {[%emt 0:01:05]} 58. bxc6 {[%emt 0:01:58] The position is equal.} bxc6 {[%emt 0:00:01]} 59. h5 {[%emt 0:00:59][%cal Bh4h5,Bh5h6][%mdl 32]} Ng5 {[%emt 0:01:03] Hoping for ...Nf3+.} 60. Rd3 {[%emt 0:00:47] Prevents Nf3+} Rb8 {[%emt 0:02:17]} 61. h6 {[%emt 0:00:30]} Rb1+ {[%emt 0:05:50]} 62. Kg2 {[%emt 0:00:02]} Rb2+ {[%emt 0:00:03]} 63. Kg1 {[%emt 0:00:15]} Rb1+ {[%emt 0:00:16]} 64. Kg2 {[%emt 0:00:01]} Rb2+ {[%emt 0:00:04]} 65. Kg1 {[%emt 0:01:11] And White is the lucky defender.   Weighted Error Value: White=0.10 (very precise) /Black=0.16 (very precise)} 1/2-1/2

[Event "Cracovia Festival-A 2023"]
[Site "Krakow"]
[Date "2023.12.30"]
[Round "4.2"]
[White "Gumularz, Szymon"]
[Black "Sernecki, Franciszek"]
[Result "1-0"]
[ECO "C18"]
[WhiteElo "2576"]
[BlackElo "2325"]
[Annotator "TA"]
[PlyCount "79"]
[EventDate "2023.12.24"]
[EventType "swiss"]
[EventCountry "POL"]
[SourceTitle "playchess.com"]
[Source "ChessBase"]
[SourceQuality "1"]
[TimeControl "40/5400+30:1800+30"]

{[%evp 15,79,5,6,-19,14,20,25,0,6,0,56,61,50,5,8,-6,-8,-5,-6,-10,-15,-22,-22,-108,-100,-96,-20,-12,-18,-19,-29,-9,8,8,8,0,3,2,2,0,0,0,74,67,177,66,595,563,621,618,604,577,29977,29975,29987,29988,29988,29989,29989,29984,29984,29985,29984,29977,29965,29949]} 1. e4 {[%emt 0:00:06]} e6 {[%emt 0:00:40]} 2. d4 {[%emt 0:00:27]} d5 {[%emt 0:00:05]} 3. Nc3 {[%emt 0:00:10]} Bb4 {[%emt 0:00:14]} 4. e5 {[%emt 0:00:13]} c5 {[%emt 0:01:20]} 5. a3 {[%emt 0:00:09]} Bxc3+ {[%emt 0:00:05]} 6. bxc3 {[%emt 0:00:06]} Qa5 {[%emt 0:00:27]} 7. Bd2 {[%emt 0:00:12]} Qa4 {[%emt 0:00:06]} 8. Qg4 {[%emt 0:00:30]} Kf8 {[%emt 0:00:15]} 9. h4 {[%emt 0:00:50][%cal Bh2h4,Bh4h5][%mdl 32] C18: French: 3 Nc3 Bb4: Main line: 7 h4 and 7 Qg4.} Nc6 {[%emt 0:02:17]} 10. h5 {[%emt 0:00:11]} h6 {[%emt 0:00:19]} 11. Qf4 {[%emt 0:03:22] White has an edge.} Qxc2 {[%emt 0:03:51]} 12. dxc5 {[%emt 0:05:38]} Qe4+ {[%emt 0:17:13]} ({Better is} 12... Nge7 $11) 13. Qxe4 $14 {[%emt 0:00:13]} dxe4 {[%emt 0:00:02] [#]} 14. f4 $146 {[%emt 0:00:30]} (14. Rh4 $5 {[%cal Rh4e4]}) ({Predecessor:} 14. Bf4 Nge7 15. Ne2 b6 16. c4 Na5 17. Nc3 Ba6 18. Nxe4 Bxc4 19. Bxc4 Nxc4 20. Rc1 {1-0 Vaibhav,S (2591)-Krishna,C (2444) Abu Dhabi op 26th 2019 (4)}) 14... f6 {[%emt 0:03:19]} 15. Rh4 {[%emt 0:09:14]} Nge7 {[%emt 0:06:35]} 16. exf6 {[%emt 0:04:40]} gxf6 {[%emt 0:01:30]} 17. g4 {[%emt 0:00:59]} b6 {[%emt 0:14:01]} 18. cxb6 {[%emt 0:06:50]} axb6 {[%emt 0:00:37]} 19. Bc4 {[%emt 0:00:54]} (19. Bc1 $11 {remains equal.}) 19... Na5 $17 {[%emt 0:08:26]} 20. Ba2 {[%emt 0:00:26] [#]} Ba6 {[%emt 0:09:00]} (20... Nb7 $1 $17 21. Bc4 Nc5) 21. Bxe6 $11 {[%emt 0:02:43]} Bc4 {[%emt 0:02:24]} 22. f5 {[%emt 0:01:41]} Bxe6 {[%emt 0:05:22]} 23. fxe6 {[%emt 0:00:04]} Nd5 {[%emt 0:01:27]} 24. Rd1 {[%emt 0:02:44][%cal Od2h6] Threatens to win with Bxh6+!} Nc7 {[%emt 0:07:52]} 25. e7+ {[%emt 0:10:41]} Kxe7 {[%emt 0:02:04]} 26. Ne2 {[%emt 0:00:03]} Nc4 {[%emt 0:04:35]} 27. Ng3 {[%emt 0:17:01][%cal Od2h6]} Rxa3 {[%emt 0:04:12]} 28. Bxh6 {[%emt 0:09:34][%mdl 64] g5 would be deadly. Decoy} Rxc3 {[%emt 0:04:53]} (28... Ne5 $11 29. Bf4 Nf3+ 30. Kf1 Nd5 31. Nf5+ (31. Rxd5 Nxh4 32. Nxe4 Ra4 $15) 31... Ke6 32. Ng7+ Ke7 33. Nf5+ (33. Rxd5 Ra1+ 34. Kg2 Nxh4+ 35. Kg3 Rg8 $15) 33... Ke6 34. Ng7+ Ke7 35. Nf5+ (35. Rxd5 Ra1+ 36. Kg2 Nxh4+ 37. Kg3 Rh1 $15)) 29. Nxe4 $16 {[%emt 0:00:30]} Rf3 {[%emt 0:00:55] [#]} (29... Ne3 $14) 30. Bg7 {[%emt 0:04:05]} (30. Ke2 $1 $18 {aiming for Rc1.} Rb3 31. Bg7 Re3+ 32. Kf2 Rxe4 33. Bxh8) 30... Re8 $2 {[%emt 0:00:40][%mdl 8192] Black cannot hold the game after this.} (30... Ra8 $1 $14 31. Bxf6+ (31. g5 fxg5 32. Nxg5 {[%mdl 64] Discovered Attack} Re3+ 33. Kf1 b5 $16) 31... Rxf6 32. Nxf6 Ne3) 31. g5 $18 {[%emt 0:06:53][%cal Re4f6]} fxg5 {[%emt 0:00:31]} 32. Nxg5 {[%emt 0:00:04] White threatens Re4+ and mate.} Re3+ {[%emt 0:00:42]} 33. Kf2 {[%emt 0:00:12]} Nb2 {[%emt 0:00:29]} 34. Bxb2 {[%emt 0:00:16] White mates.} Rb3 {[%emt 0:00:15]} 35. Re4+ {[%emt 0:00:16]} Kf8 {[%emt 0:00:03]} 36. Nh7+ {[%emt 0:00:19]} Kg8 {[%emt 0:00:19]} 37. Nf6+ {[%emt 0:00:04]} Kf8 {[%emt 0:00:13]} 38. Nxe8 {[%emt 0:00:17]} Rxb2+ {[%emt 0:00:11]} 39. Kg1 {[%emt 0:00:04]} Nxe8 {[%emt 0:00:07]} 40. Rf1+ {[%emt 0:00:00][%mdl 64] Deflection.   Weighted Error Value: White=0.12 (very precise) /Black=0.51} 1-0

[Event "Cracovia Festival-A 2023"]
[Site "Krakow"]
[Date "2023.12.30"]
[Round "4.3"]
[White "Sieciechowicz, Marcin"]
[Black "Puranik, Abhimanyu"]
[Result "1/2-1/2"]
[ECO "E32"]
[WhiteElo "2391"]
[BlackElo "2627"]
[Annotator "TA"]
[PlyCount "84"]
[EventDate "2023.12.24"]
[EventType "swiss"]
[EventCountry "POL"]
[SourceTitle "playchess.com"]
[Source "ChessBase"]
[SourceQuality "1"]
[TimeControl "40/5400+30:1800+30"]

{[%evp 22,84,0,0,0,5,11,0,5,0,0,0,1,0,4,6,7,7,4,7,6,5,7,0,0,0,0,0,0,0,0,0,0,-8,0,0,0,0,0,-8,0,0,0,0,0,0,0,0,0,0,0,-15,0,0,0,0,0,0,0,0,0,0,0,0,0]} 1. d4 {[%emt 0:00:15]} Nf6 {[%emt 0:00:16]} 2. c4 {[%emt 0:00:04]} e6 {[%emt 0:00:14]} 3. Nc3 {[%emt 0:00:11]} Bb4 {[%emt 0:00:24]} 4. Qc2 {[%emt 0:00:09]} d6 {[%emt 0:01:05]} 5. Bd2 {[%emt 0:00:28]} O-O {[%emt 0:01:13]} 6. a3 {[%emt 0:00:15]} Bxc3 {[%emt 0:00:08]} 7. Bxc3 {[%emt 0:00:02]} b6 {[%emt 0:00:52]} 8. Nf3 {[%emt 0:01:19]} Bb7 {[%emt 0:02:15]} 9. e3 {[%emt 0:03:34]} Nbd7 {[%emt 0:00:21]} 10. Be2 {[%emt 0:00:34]} Ne4 {[%emt 0:05:16]} 11. O-O {[%emt 0:00:56]} Nxc3 {[%emt 0:07:17]} 12. Qxc3 {[%emt 0:00:17] The position is equal.} Qe7 {[%emt 0:00:39] E43: Nimzo-Indian: Rubinstein: 4...b6.} 13. Rfd1 {[%emt 0:00:36] [#]} e5 $146 {[%emt 0:01:34]} ({Predecessor:} 13... a5 14. b3 f5 15. Ne1 e5 16. d5 Nf6 17. Qd3 Bc8 18. Nc2 Bd7 19. f4 Rae8 {0-1 Krasenkow,M (2605)-Tazbir,M (2510) POL-chT Ekstraliga 2020 (1.1)}) 14. dxe5 {[%emt 0:00:48]} dxe5 {[%emt 0:01:57]} 15. b4 {[%emt 0:01:16][%cal Oc4c5]} a5 {[%emt 0:07:07]} 16. h3 {[%emt 0:00:21]} h6 {[%emt 0:01:08] [#]} 17. c5 $1 {[%emt 0:07:43]} axb4 {[%emt 0:00:32]} 18. axb4 {[%emt 0:00:11][%cal Ba3b4,Bb4c5,Bc5c6][%mdl 32] Strongly threatening c6.} Rxa1 {[%emt 0:01:44]} 19. Rxa1 {[%emt 0:02:38] c6 is the strong threat.} bxc5 {[%emt 0:02:36]} 20. bxc5 {[%emt 0:01:18]} Bxf3 {[%emt 0:10:26]} 21. Bxf3 {[%emt 0:00:33]} Rb8 {[%emt 0:02:21]} 22. c6 {[%emt 0:14:34]} Nf6 {[%emt 0:00:14]} 23. Rc1 {[%emt 0:07:02]} g6 {[%emt 0:06:29]} 24. g3 {[%emt 0:03:01]} Rb5 {[%emt 0:06:53]} 25. Qd3 {[%emt 0:02:44]} Rb6 {[%emt 0:02:36]} 26. Bg2 {[%emt 0:00:57]} Kg7 {[%emt 0:00:17]} 27. Rd1 {[%emt 0:02:11]} Rb8 {[%emt 0:03:01]} 28. Qc3 {[%emt 0:00:56]} h5 {[%emt 0:00:17]} 29. Rf1 {[%emt 0:02:56]} Rb5 {[%emt 0:01:51]} 30. Rc1 {[%emt 0:00:31]} Qd6 {[%emt 0:00:55]} 31. Qc4 {[%emt 0:02:18]} Rb2 {[%emt 0:00:59]} 32. Qc5 {[%emt 0:03:18] And now Qxd6 would win.} Rb1 {[%emt 0:01:33][%mdl 64] [#] Deflection} 33. Kh2 {[%emt 0:03:26] Black must now prevent Qxd6.} Rxc1 {[%emt 0:01:14]} 34. Qxc1 $11 {[%emt 0:00:03][%mdl 4096] Endgame KQB-KQN} Ng8 {[%emt 0:04:29]} 35. Kg1 {[%emt 0:02:20]} Ne7 {[%emt 0:00:08]} 36. g4 {[%emt 0:07:06]} h4 {[%emt 0:04:02]} 37. Qc4 {[%emt 0:06:26]} f6 {[%emt 0:00:06]} 38. Bf3 {[%emt 0:02:49]} Ng8 {[%emt 0:12:20]} 39. Bd5 {[%emt 0:07:50]} Ne7 {[%emt 0:00:10]} 40. Bf3 {[%emt 0:00:00]} Kh6 {[%emt 0:00:00]} 41. Kg2 {[%emt 0:14:47]} Kg5 {[%emt 0:01:08]} 42. Kg1 {[%emt 0:01:49]} Kh6 {[%emt 0:04:34] An even fight not without its subleties.   Weighted Error Value: White=0.02 (flawless) /Black=0.01 (flawless)} 1/2-1/2

[Event "Cracovia Festival-A 2023"]
[Site "Krakow"]
[Date "2023.12.30"]
[Round "4.4"]
[White "Cieslak, Patryk"]
[Black "Polak, Tomas"]
[Result "1/2-1/2"]
[ECO "C50"]
[WhiteElo "2284"]
[BlackElo "2517"]
[Annotator "TA"]
[PlyCount "41"]
[EventDate "2023.12.24"]
[EventType "swiss"]
[EventCountry "POL"]
[SourceTitle "playchess.com"]
[Source "ChessBase"]
[SourceQuality "1"]
[TimeControl "40/5400+30:1800+30"]

{[%evp 21,41,7,7,7,14,12,10,11,24,7,71,71,79,67,60,72,68,72,78,43,36,32]} 1. e4 {[%emt 0:00:03]} e5 {[%emt 0:00:14]} 2. Nf3 {[%emt 0:00:04]} Nc6 {[%emt 0:00:09]} 3. Bc4 {[%emt 0:00:22]} Nf6 {[%emt 0:00:42]} 4. d3 {[%emt 0:00:07]} Bc5 {[%emt 0:03:01]} 5. Nc3 {[%emt 0:00:59]} d6 {[%emt 0:03:51]} 6. Bg5 {[%emt 0:00:38]} h6 {[%emt 0:00:28]} 7. Bxf6 {[%emt 0:00:25]} Qxf6 {[%emt 0:00:07]} 8. Nd5 {[%emt 0:00:16]} Qd8 {[%emt 0:00:25]} 9. c3 {[%emt 0:00:12]} a6 {[%emt 0:02:53]} 10. d4 {[%emt 0:00:40]} Ba7 {[%emt 0:01:56]} 11. dxe5 {[%emt 0:00:16]} Nxe5 {[%emt 0:11:18]} 12. Nxe5 {[%emt 0:00:12] C50: Hungarian Defence and Giuoco Pianissimo.} dxe5 {[%emt 0:00:05]} 13. Qh5 {[%emt 0:00:45]} O-O $1 {[%emt 0:00:33]} 14. Qxe5 {[%emt 0:00:42] The position is equal.} Re8 {[%emt 0:08:20]} 15. Qf4 {[%emt 0:00:36] And now 0-0-0 would win.} (15. Qxc7 $2 {perishes.} Rxe4+ 16. Kf1 Be6 17. Qxd8+ Rxd8 $19) 15... Be6 {[%emt 0:13:31] [#]} (15... Qd6 $11 16. Qxd6 Rxe4+ 17. Ne3 cxd6) 16. O-O-O $1 $16 {[%emt 0:24:12] White is more active.} Qg5 {[%emt 0:03:40]} 17. Qxg5 {[%emt 0:03:41]} hxg5 {[%emt 0:00:06]} 18. Bb3 {[%emt 0:00:50]} Rac8 {[%emt 0:02:48]} 19. f3 {[%emt 0:03:01][%cal Bf2f3,Bf3f4][%mdl 32] [#]} g4 $146 {[%emt 0:05:25]} ({Predecessor:} 19... c5 20. g3 c4 21. Bc2 f6 22. Rhe1 Kf7 23. Ne3 Rh8 24. Nf5 Rc7 25. Re2 g6 {1-0 Kotronias,V (2440)-Skembris,S (2410) Athens m 1987 (6)}) 20. f4 {[%emt 0:17:10]} Bxd5 {[%emt 0:18:42]} 21. Rxd5 {[%emt 0:01:37] Weighted Error Value: White=0.06 (flawless) /Black=0.10 (very precise)} 1/2-1/2

[Event "Cracovia Festival-A 2023"]
[Site "Krakow"]
[Date "2023.12.30"]
[Round "4.5"]
[White "Janeczko, Jakub"]
[Black "Janik, Igor"]
[Result "0-1"]
[ECO "B12"]
[WhiteElo "2283"]
[BlackElo "2514"]
[Annotator "TA"]
[PlyCount "65"]
[EventDate "2023.12.24"]
[EventType "swiss"]
[EventCountry "POL"]
[SourceTitle "playchess.com"]
[Source "ChessBase"]
[SourceQuality "1"]
[TimeControl "40/5400+30:1800+30"]

{[%evp 16,65,0,-44,-35,-38,0,0,-28,-48,-14,-8,-31,-21,-27,-22,0,0,0,0,0,0,0,0,0,-13,16,6,8,-62,-63,-56,-56,-73,-50,-158,-95,-396,-396,-420,-432,-413,-413,-408,-289,-289,-282,-295,-289,-319,-312,-387]} 1. e4 {[%emt 0:00:03]} c6 {[%emt 0:00:01][%cal Bc7c6,Bc6c5][%mdl 32]} 2. d4 {[%emt 0:00:05]} d5 {[%emt 0:00:07]} 3. e5 {[%emt 0:00:05]} Bf5 {[%emt 0:02:03]} 4. Nc3 {[%emt 0:00:06]} e6 {[%emt 0:00:22]} 5. g4 {[%emt 0:00:05]} Bg6 {[%emt 0:00:02]} 6. Nge2 {[%emt 0:00:07]} c5 {[%emt 0:00:17]} 7. h4 {[%emt 0:00:07]} h5 {[%emt 0:00:39]} 8. Nf4 {[%emt 0:00:07]} Bh7 {[%emt 0:00:05]} 9. Nxh5 {[%emt 0:00:10]} (9. g5 $5 {[%cal Rd1h5]}) 9... Nc6 $1 {[%emt 0:01:13] B12: Caro-Kann: Advance Variation.} 10. dxc5 {[%emt 0:00:38]} Bxc5 {[%emt 0:01:05] Strongly threatening ...Qb6.} 11. Bg5 $1 {[%emt 0:00:04] 11.Bb5 is vanishing.} Qb6 {[%emt 0:01:06] The position is equal.} 12. Qd2 {[%emt 0:00:05]} Qxb2 {[%emt 0:02:30]} (12... Nd4 $5 {[%cal Rd4f3]} 13. O-O-O (13. Nxg7+ Kf8 $17) 13... Bxc2 $17) 13. Rb1 $132 {[%emt 0:00:04][%mdl 2048] White is not holding back} Qxc2 {[%emt 0:00:13]} 14. Qxc2 {[%emt 0:00:04]} Bxc2 {[%emt 0:00:16]} 15. Rc1 {[%emt 0:00:04] [#]} Bb4 $146 {[%emt 0:18:26][%cal Bc5b4,Bb4c3,Bc3e5][%mdl 32]} ({Predecessor:} 15... d4 16. Rxc2 dxc3 17. Bb5 Nge7 18. Ke2 Bd4 19. f4 O-O 20. Rd1 a6 21. Bxe7 axb5 22. Bxf8 Kxf8 {1-0 Figueredo Losada,L (2337)-Swiercz,D (2665) American Continental 16th 2022 (11)}) 16. Rxc2 {[%emt 0:02:11] Hoping for Kd1.} d4 $1 {[%emt 0:03:26][%mdl 64] Pin} 17. Bb5 {[%emt 0:20:57]} Bxc3+ {[%emt 0:02:36]} 18. Ke2 {[%emt 0:11:11]} Nge7 {[%emt 0:09:53]} 19. Nxg7+ {[%emt 0:05:04]} Kf8 {[%emt 0:00:47]} 20. Bf6 {[%emt 0:09:46] A strong pair of Bishops.} d3+ {[%emt 0:05:12]} 21. Kxd3 {[%emt 0:14:21]} Bxe5 {[%emt 0:00:17]} 22. Bxe7+ {[%emt 0:15:58]} ({Better is} 22. Nxe6+ $1 $11 fxe6 23. Bxh8 Bxh8 24. Bxc6 Nxc6 25. Ke4) 22... Nxe7 $15 {[%emt 0:09:26]} ({Don't take} 22... Kxg7 23. Bxc6 bxc6 24. h5 $16 (24. Rxc6 Rac8 $16)) 23. Nh5 {[%emt 0:00:05]} Rd8+ {[%emt 0:00:28]} 24. Ke2 {[%emt 0:01:13] White is weak on the dark squares} Nd5 {...Nc3+ is the strong threat.} 25. Rd1 {[%emt 0:04:10]} (25. Bc4 $15) 25... Ke7 {[%emt 0:04:39]} (25... a6 $142 26. Ba4 f5) 26. Kf3 $2 {[%emt 0:02:28][%mdl 8192] White does not recover from this.} (26. Re1 $17 {is tougher.}) 26... f5 $19 {[%emt 0:01:14] [#] aiming for ...fxg4+.} 27. Be2 {[%emt 0:00:44]} fxg4+ {[%emt 0:07:15]} 28. Kxg4 {[%emt 0:00:02]} Rdf8 {[%emt 0:01:40]} 29. Rxd5 {[%emt 0:05:47]} Rhg8+ {[%emt 0:00:22]} 30. Kh3 {[%emt 0:00:07] Black has a decisive advantage.} exd5 {[%emt 0:00:03]} 31. Bg4 {[%emt 0:00:09]} Rg6 {[%emt 0:02:58]} 32. Re2 {[%emt 0:00:27]} Kd6 {[%emt 0:00:16]} 33. f4 {[%emt 0:00:02] Weighted Error Value: White=0.35/Black=0.18 (very precise)} 0-1